bitfinex/quotes_ETHUSD_20240910
["timestamp","ask_amount","ask_price","bid_price","bid_amount"]
[1726000785957,0.55,2396.8,2396.0,0.08345132]
[1726000786443,2.2559,2396.9,2396.0,0.08345132]
[1726000786647,2.2559,2396.9,2396.0,0.59475668]
[1726000786846,2.2559,2396.9,2396.0,3.59475668]
[1726000787633,3.92293507,2397.3,2396.1,1.9964]
[1726000787821,2.9883,2397.2,2396.2,0.64256163]
[1726000788016,2.9883,2397.2,2396.3,0.08344597]
[1726000789609,2.9883,2397.2,2396.4,1.9964]
[1726000789811,2.9883,2397.2,2396.5,0.08344289]
[1726000790023,2.9883,2397.2,2396.5,0.29977178]
[1726000790855,0.55,2397.2,2396.5,0.29977178]
[1726000791168,0.55,2397.3,2396.5,0.29977178]
[1726000791313,7.49,2397.4,2396.6,1.9964]
[1726000791513,7.49,2397.4,2396.7,0.31304612]
[1726000791755,2.4911,2397.5,2396.8,0.08342894]
[1726000791911,7.49,2397.7,2396.8,0.08342894]
[1726000792827,0.55,2397.6,2396.8,0.08342894]
[1726000796517,2.3104,2397.5,2396.7,0.31304614]
[1726000796868,0.55,2397.4,2396.7,0.31304614]
[1726000798469,7.49,2397.7,2396.8,0.08343685]
[1726000798677,7.49,2397.7,2396.9,1.9964]
[1726000798832,7.49,2397.7,2397.0,0.08342353]
[1726000799032,7.49,2397.7,2397.0,4.0063586]
[1726000799226,7.49,2397.7,2397.2,1.9964]
[1726000799427,0.02026041,2398.0,2397.2,2.07981884]
[1726000799744,0.02026041,2398.0,2397.6,3.92293507]
[1726000799941,0.02026041,2398.0,2397.8,1.9964]
[1726000800528,0.02026041,2398.0,2397.8,2.07980168]
[1726000800886,0.02026041,2398.0,2397.8,6.00273675]
[1726000804478,0.02026041,2398.0,2397.8,2.07980168]
[1726000804836,0.02026041,2398.0,2397.8,1.9964]
[1726000806161,0.02026041,2398.0,2397.7,3.08340028]
[1726000806343,0.02026041,2398.0,2397.7,3.78403382]
[1726000811923,0.02026041,2398.0,2397.9,1.9964]
[1726000812106,0.02026041,2398.0,2397.9,5.0797871]
[1726000816027,0.02026041,2398.0,2397.9,5.64793372]
[1726000816588,0.03,2398.2,2398.1,3.9964]
[1726000816792,0.03,2398.2,2398.1,12.41848051]
[1726000817035,0.03,2398.2,2398.1,11.86848051]
[1726000817232,0.0318518,2398.6,2398.5,3.9964]
[1726000817433,0.0318518,2399.1,2398.6,1.9964]
[1726000817599,0.0318518,2399.1,2399.0,3.92293507]
[1726000817803,0.0318518,2399.1,2399.0,3.08333713]
[1726000818004,0.0318518,2399.1,2398.6,0.50698313]
[1726000818340,0.0318518,2399.1,2398.7,0.08337302]
[1726000818630,0.0318518,2399.1,2398.5,3.92293507]
[1726000818835,0.0318518,2399.1,2398.6,2.07975748]
[1726000819018,0.0318518,2399.1,2398.7,4.52320432]
[1726000819219,0.0318518,2399.1,2398.3,5.91933507]
[1726000819388,0.0318518,2399.1,2398.5,3.92293507]
[1726000819589,0.0318518,2399.1,2398.6,0.08336337]
[1726000819826,0.0318518,2399.1,2398.7,3.92293507]
[1726000820040,0.0318518,2399.1,2398.9,3.92293507]
[1726000820362,0.0318518,2399.1,2399.0,0.08335566]
[1726000820639,0.0318518,2399.1,2398.6,3.08335565]
[1726000825659,0.0318518,2399.1,2398.6,0.08335565]
[1726000826352,0.0318518,2399.1,2398.4,0.08336896]
[1726000827724,2.2846,2399.0,2398.0,5.07976907]
[1726000828441,2.2846,2399.0,2398.0,2.07976907]
[1726000829450,2.8167,2398.9,2397.9,7.38]
[1726000829616,2.2667,2398.3,2397.4,0.43147706]
[1726000829817,6.43652,2398.2,2397.5,0.08340421]
[1726000830021,2.9699,2398.1,2397.5,0.08340421]
[1726000830332,2.4199,2397.9,2396.7,4.81060896]
[1726000830643,2.4199,2397.7,2396.8,0.11527108]
[1726000831047,0.55,2397.6,2396.8,0.0318518]
[1726000833114,2.4199,2397.7,2396.8,0.0318518]
[1726000833348,0.55,2397.6,2396.8,0.0318518]
[1726000836233,0.55,2397.6,2396.8,0.11528101]
[1726000836405,0.55,2397.5,2396.8,0.11528101]
[1726000836602,0.55,2397.6,2396.8,0.11528101]
[1726000837210,0.55,2397.6,2396.8,0.0318518]
[1726000837406,0.55,2397.6,2396.8,0.11527589]
[1726000838319,0.55,2397.6,2396.8,0.0318518]
[1726000840349,2.2772,2397.5,2396.8,0.0318518]
[1726000840514,0.55,2397.4,2396.8,0.0318518]
[1726000841540,2.4231,2397.3,2396.8,0.0318518]
[1726000841705,0.55,2397.2,2396.8,0.0318518]
[1726000843454,2.4231,2397.3,2396.8,0.0318518]
[1726000845163,2.4231,2397.5,2396.8,0.0318518]
[1726000845459,0.55,2397.4,2396.8,0.0318518]
[1726000847510,2.4316,2397.3,2396.8,0.0318518]
[1726000847712,0.55,2397.2,2396.8,0.0318518]
[1726000852953,6.56221,2397.1,2396.8,0.0318518]
[1726000853204,0.55,2397.0,2396.8,0.0318518]
[1726000853405,2.3905,2396.9,2396.8,0.0318518]
[1726000853558,7.11255,2396.9,2396.8,0.0318518]
[1726000853757,5.9405,2396.9,2396.8,0.0318518]
[1726000859013,5.9405,2396.9,2395.9,0.08345827]
[1726000859208,0.55,2396.8,2396.7,0.04173]
[1726000862142,7.14322,2396.8,2396.7,0.04173]
[1726000862419,2.971,2396.8,2396.7,0.04173]
[1726000863591,7.14322,2396.8,2396.7,0.04173]
[1726000866616,2.421,2396.8,2396.7,0.04173]
[1726000866823,6.59322,2396.8,2396.7,0.04173]
[1726000867689,10.76544,2396.8,2396.7,0.04173]
[1726000867903,23.31029988,2396.8,2396.7,0.04173]
[1726000868214,4.17301,2396.4,2396.2,0.026432]
[1726000868414,12.54485988,2396.8,2396.2,0.026432]
[1726000868415,8.3462,2396.3,2396.2,0.026432]
[1726000868629,10.8068,2396.3,2396.2,0.026432]
[1726000868831,10.8068,2396.3,2395.7,0.026432]
[1726000868832,6.63457,2395.8,2395.7,0.026432]
[1726000868985,10.80854,2395.8,2395.7,0.026432]
[1726000869430,14.35854,2395.8,2395.7,0.026432]
[1726000869630,10.18457,2395.8,2395.7,0.026432]
[1726000870014,3.0106,2395.8,2395.7,0.026432]
[1726000871600,7.17348,2396.1,2395.7,0.026432]
[1726000871601,3.0,2396.1,2395.7,0.026432]
[1726000871801,2.4606,2396.2,2395.7,0.026432]
[1726000871802,3.0,2396.0,2395.7,0.026432]
[1726000872347,2.4606,2396.2,2395.7,0.026432]
[1726000873058,0.55,2396.1,2395.7,0.026432]
[1726000873734,0.55,2396.1,2394.7,3.85968013]
[1726000873735,2.4606,2394.2,2394.1,0.0357091]
[1726000873906,2.4606,2394.2,2394.0,0.43184733]
[1726000873907,4.17693,2394.1,2394.0,0.43184733]
[1726000874268,4.90612733,2394.1,2392.8,0.08357656]
[1726000874549,4.17711,2394.0,2392.8,0.08357656]
[1726000874707,3.08348745,2393.9,2392.8,2.25885594]
[1726000874909,0.55,2393.8,2392.7,2.0228]
[1726000875260,0.08348745,2393.7,2392.7,2.0228]
[1726000875403,0.55,2393.6,2392.8,0.08357094]
[1726000875606,0.08348745,2393.5,2392.8,0.08357094]
[1726000876024,0.55,2393.4,2392.7,2.0228]
[1726000876242,0.55,2393.4,2392.6,0.04113747]
[1726000877716,4.72815,2393.4,2392.6,0.04113747]
[1726000878056,7.81163745,2393.4,2392.6,0.04113747]
[1726000879753,3.63348745,2393.4,2392.6,0.04113747]
[1726000881575,0.63348745,2393.4,2392.6,0.04113747]
[1726000883635,16.75543297,2393.4,2392.6,0.04113747]
[1726000883840,19.08272733,2393.4,2392.6,0.04113747]
[1726000886634,10.08193745,2393.4,2392.6,0.04113747]
[1726000886837,14.26008745,2393.4,2392.6,0.04113747]
[1726000887180,19.08272733,2393.4,2392.6,0.04113747]
[1726000889774,5.90378745,2393.4,2392.6,0.04113747]
[1726000889972,10.08193745,2393.4,2392.6,0.04113747]
[1726000890418,10.08193745,2393.4,2392.7,2.0228]
[1726000890419,5.90378745,2393.4,2392.7,2.0228]
[1726000890624,10.08193745,2393.4,2392.7,2.0228]
[1726000891079,10.08193745,2393.4,2392.6,0.04113747]
[1726000891080,14.26008745,2393.4,2392.6,0.04113747]
[1726000891424,19.08272733,2393.4,2392.6,0.04113747]
[1726000895970,3.63348745,2393.4,2392.7,2.0228]
[1726000898128,0.63348745,2393.4,2392.7,2.0228]
[1726000904571,3.63348745,2393.4,2392.7,2.0228]
[1726000908676,0.08348745,2393.4,2393.1,3.93052277]
[1726000908876,0.08348745,2394.2,2393.3,2.0631333]
[1726000909036,0.08348745,2394.2,2393.4,0.28530405]
[1726000910648,2.4333,2394.0,2393.3,0.0403333]
[1726000910990,9.01132258,2393.8,2393.3,0.0403333]
[1726000911288,3.08348745,2393.7,2393.3,0.0403333]
[1726000911990,0.55,2393.6,2393.3,0.0403333]
[1726000912162,0.08348745,2393.5,2393.3,0.0403333]
[1726000912481,0.55,2393.4,2393.3,0.0403333]
[1726000914446,0.55,2393.4,2393.3,2.0631333]
[1726000920356,0.55,2393.4,2393.3,0.0403333]
[1726000921598,0.55,2393.6,2393.3,0.0403333]
[1726000921895,0.08348745,2393.5,2393.3,0.0403333]
[1726000922048,0.55,2393.4,2393.3,0.0403333]
[1726000922677,0.08348745,2393.5,2393.3,0.0403333]
[1726000922882,0.08348745,2393.8,2393.3,0.0403333]
[1726000923108,0.55,2393.7,2393.3,0.0403333]
[1726000923248,0.08348745,2393.6,2393.3,0.0403333]
[1726000923455,0.55,2393.5,2393.3,0.0403333]
[1726000923653,0.08348745,2393.4,2393.3,0.0403333]
[1726000924194,0.63348745,2393.4,2393.3,0.0403333]
[1726000925136,0.55,2393.4,2393.3,0.0403333]
[1726000925285,4.26163745,2393.4,2393.3,0.0403333]
[1726000925625,6.11585958,2393.4,2393.3,0.0403333]
[1726000925924,9.11585958,2393.4,2393.3,0.0403333]
[1726000926422,4.93770958,2393.4,2393.3,0.0403333]
[1726000926725,4.50933487,2393.4,2393.3,0.0403333]
[1726000926937,3.63348745,2393.4,2393.3,0.0403333]
[1726000928030,0.63348745,2393.4,2393.3,0.0403333]
[1726000928386,1.50933487,2393.4,2393.3,0.0403333]
[1726000928732,0.63348745,2393.4,2393.3,0.0403333]
[1726000928885,1.50933487,2393.4,2393.3,0.0403333]
[1726000929085,1.93770958,2393.4,2393.3,0.0403333]
[1726000929282,4.93770958,2393.4,2393.3,0.0403333]
[1726000930038,9.11585958,2393.4,2393.3,0.0403333]
[1726000930194,11.50545958,2393.4,2393.3,0.0403333]
[1726000930623,11.93882177,2393.4,2393.3,0.0403333]
[1726000933133,4.94758306,2393.4,2393.3,0.0403333]
[1726000934741,3.63348745,2393.4,2393.3,0.0403333]
[1726000934941,4.94772334,2393.4,2393.3,0.0403333]
[1726000935235,11.97072177,2393.4,2393.3,0.0403333]
[1726000935547,11.98558297,2393.4,2393.3,0.0403333]
[1726000935695,4.17834,2393.3,2392.7,2.0228]
[1726000935896,4.94785515,2393.2,2393.1,2.0750381]
[1726000936092,0.87624938,2393.3,2393.1,2.0750381]
[1726000936306,0.08348745,2393.6,2393.2,2.0228]
[1726000936629,0.08348745,2393.7,2393.4,5.95339385]
[1726000936948,0.08348745,2393.9,2393.5,2.0228]
[1726000937238,0.87624938,2394.1,2393.5,2.0228]
[1726000937239,0.08348745,2394.1,2393.6,2.0228]
[1726000937449,0.08348745,2394.1,2393.8,3.93059385]
[1726000937798,0.08348745,2394.1,2393.8,0.0157309]
[1726000938319,1.3143677,2394.4,2393.8,0.0157309]
[1726000938320,0.08348745,2394.2,2393.9,2.0228]
[1726000938710,0.08348745,2394.4,2393.9,5.95339385]
[1726000938901,0.08348745,2394.4,2394.0,0.60526719]
[1726000939399,0.08348745,2394.6,2394.1,2.0228]
[1726000939947,0.08348745,2394.6,2394.1,5.95339385]
[1726000940097,0.08348745,2394.6,2394.2,2.0228]
[1726000940497,0.08348745,2394.9,2394.2,2.0228]
[1726000941640,0.95973683,2395.1,2394.2,2.0228]
[1726000941806,0.08348745,2395.1,2394.2,2.0228]
[1726000942137,0.08348745,2395.1,2394.3,2.68456135]
[1726000942443,0.08348745,2395.1,2394.4,2.0228]
[1726000942923,0.55,2395.0,2394.4,2.0228]
[1726000943126,0.08348745,2394.9,2394.4,2.0228]
[1726000943439,0.55,2394.8,2393.9,2.0228]
[1726000943648,0.08348745,2394.7,2393.9,2.0228]
[1726000943850,0.08348745,2394.7,2393.9,2.61971248]
[1726000943851,0.55,2394.6,2393.9,2.61971248]
[1726000944148,0.08348745,2394.5,2393.9,2.61971248]
[1726000944443,0.55,2394.4,2393.9,2.0228]
[1726000944609,0.08348745,2394.3,2393.9,2.0228]
[1726000944811,0.55,2394.2,2393.9,2.0228]
[1726000945027,0.08348745,2394.1,2393.9,2.0228]
[1726000945231,7.49,2394.6,2393.9,2.61971248]
[1726000945402,0.08348745,2394.7,2393.9,2.61971248]
[1726000945403,0.63348745,2394.5,2393.9,2.61971248]
[1726000945604,0.08348745,2394.5,2393.9,2.61971248]
[1726000945905,0.55,2394.4,2393.9,2.61971248]
[1726000946265,0.08348745,2394.3,2393.9,2.61971248]
[1726000946739,0.08348745,2394.7,2394.2,3.93059385]
[1726000946946,0.08348745,2394.7,2394.3,2.0228]
[1726000947259,0.08348745,2394.8,2394.3,2.0228]
[1726000947565,0.08348745,2394.8,2394.4,0.59533939]
[1726000948140,0.08348745,2395.1,2394.4,0.59533939]
[1726000948297,3.08348745,2395.1,2394.4,0.59533939]
[1726000948698,3.08348745,2395.1,2394.3,2.0228]
[1726000948939,0.55,2395.0,2394.3,2.0228]
[1726000949213,0.08348745,2394.9,2394.3,2.0228]
[1726000949418,0.55,2394.8,2394.3,2.0228]
[1726000949629,0.08348745,2394.7,2394.3,2.0228]
[1726000949825,0.55,2394.8,2394.3,2.61813939]
[1726000950045,0.55,2394.9,2394.4,5.95339385]
[1726000950343,0.08348745,2394.8,2394.4,5.95339385]
[1726000950717,0.63348745,2394.9,2394.4,5.95339385]
[1726000950897,0.08348745,2394.9,2394.4,6.54873324]
[1726000951104,0.08348745,2394.9,2394.4,2.61813939]
[1726000951444,0.55,2394.8,2394.4,2.0228]
[1726000951643,0.08348745,2394.7,2394.4,2.0228]
[1726000952825,0.08348745,2395.0,2394.4,3.93059385]
[1726000953045,0.08348745,2395.0,2394.6,2.0228]
[1726000953252,0.08348745,2395.1,2394.7,2.0228]
[1726000953399,0.08348745,2395.7,2394.9,2.0228]
[1726000953851,0.08348745,2395.7,2394.9,2.10631206]
[1726000955598,0.08348745,2395.7,2394.9,2.0228]
[1726000956550,0.08348745,2395.7,2395.0,0.08350802]
[1726000956713,0.08348745,2395.7,2395.1,2.0228]
[1726000957133,0.08348745,2395.7,2395.1,2.10629845]
[1726000957849,0.08348745,2395.7,2395.1,2.0228]
[1726000958002,0.08348745,2395.7,2395.1,2.10629508]
[1726000958201,0.08348745,2395.7,2395.1,2.70998397]
[1726000958550,0.08348745,2395.7,2395.2,2.0228]
[1726000959045,0.0207763,2395.8,2395.2,2.0228]
[1726000959550,0.10426375,2395.8,2395.2,2.0228]
[1726000959752,0.55,2395.7,2395.2,2.0228]
[1726000960048,0.08348745,2395.6,2395.2,2.0228]
[1726000960201,0.08348745,2395.6,2395.2,2.68685778]
[1726000961049,2.51088745,2395.6,2394.8,2.0228]
[1726000961257,2.51088745,2395.6,2393.9,2.0228]
[1726000961258,3.93059385,2395.4,2393.9,2.0228]
[1726000961555,0.63348745,2395.3,2394.3,3.93059385]
[1726000961706,0.08348745,2395.2,2394.5,2.0228]
[1726000961911,0.55,2395.1,2394.5,2.0228]
[1726000962253,0.55,2395.1,2394.6,2.1063188]
[1726000962452,0.55,2395.1,2394.8,2.0228]
[1726000962693,0.08348745,2395.0,2394.6,2.0228]
[1726000962810,0.55,2394.9,2394.6,2.0228]
[1726000963005,0.08348745,2394.8,2394.6,2.0228]
[1726000963207,0.08348745,2395.2,2394.6,2.0228]
[1726000963508,0.55,2395.1,2394.6,2.0228]
[1726000963734,0.08348745,2395.0,2394.6,2.0228]
[1726000967006,0.55,2394.9,2394.6,2.0228]
[1726000975673,0.08348745,2395.3,2394.6,2.0228]
[1726000975869,0.55,2395.2,2394.6,2.0228]
[1726000976036,0.08348745,2395.1,2394.6,2.0228]
[1726000976237,0.55,2395.0,2394.6,2.0228]
[1726000976433,0.08348745,2394.9,2394.6,2.0228]
[1726000981759,0.55,2395.0,2394.6,2.0228]
[1726000981968,0.55,2395.2,2394.6,2.0228]
[1726000982150,0.08348745,2395.1,2394.6,2.23343159]
[1726000982350,0.55,2395.0,2394.6,2.23343159]
[1726000982597,0.08348745,2395.1,2394.6,2.23343159]
[1726000982778,0.08348745,2395.3,2394.8,2.0228]
[1726000982983,0.08348745,2395.3,2394.9,0.21063098]
[1726000983169,0.08348745,2395.4,2395.0,2.0228]
[1726000983496,0.87624938,2395.6,2395.2,2.0228]
[1726000983497,0.08348745,2395.6,2395.2,2.0228]
[1726000983654,0.08348745,2395.7,2395.2,2.0228]
[1726000983854,0.08348745,2395.7,2395.2,2.33090431]
[1726000985056,0.10426375,2395.8,2395.2,2.33090431]
[1726000987364,0.10426375,2395.8,2395.2,2.24741431]
[1726000992382,0.10426375,2395.8,2395.3,0.08348961]
[1726000992584,0.10426375,2395.8,2395.4,2.0228]
[1726000992780,0.0207763,2395.8,2395.4,2.0228]
[1726000993109,0.0207763,2395.8,2395.2,0.22461431]
[1726000993110,0.0207763,2395.8,2395.7,2.0228]
[1726000994367,0.0207763,2395.8,2395.4,3.93059385]
[1726000994368,0.0207763,2395.8,2395.4,2.0228]
[1726000994809,0.0207763,2395.8,2395.5,0.08348264]
[1726000996019,0.0207763,2395.8,2395.4,2.94060082]
[1726000996317,0.08348745,2396.2,2395.4,2.94060082]
[1726000996653,0.0318059,2395.8,2395.4,2.94060082]
[1726000997025,0.0318059,2395.8,2395.5,0.08347985]
[1726000997234,0.0318059,2395.8,2395.4,2.94060082]
[1726000997753,0.0318059,2395.8,2395.4,2.0228]
[1726000998257,0.0318059,2395.8,2395.2,0.22461431]
[1726000998414,0.11529335,2395.8,2395.3,0.08348787]
[1726000998610,0.11529335,2395.8,2395.2,0.22461431]
[1726000999966,0.11529335,2395.8,2395.2,0.30810214]
[1726001001694,0.11529335,2395.8,2395.2,4.23869599]
[1726001001904,0.0318059,2395.8,2395.4,2.0228]
[1726001002200,0.0318059,2395.8,2395.5,0.08347972]
[1726001002495,0.0318059,2395.8,2395.4,2.0228]
[1726001002908,0.0318059,2395.8,2395.5,0.08347972]
[1726001003068,0.0318059,2395.8,2395.5,0.38672265]
[1726001004490,0.0318059,2395.8,2395.3,0.9261496]
[1726001005048,0.0318059,2395.8,2395.3,1.0096294]
[1726001005254,0.0318059,2395.8,2395.3,0.9261496]
[1726001005451,0.0318059,2395.8,2395.3,1.00963804]
[1726001005769,0.0318059,2395.8,2395.3,0.9261496]
[1726001005969,2.5253059,2395.8,2395.3,0.9261496]
[1726001006171,0.08348745,2395.7,2395.3,0.9261496]
[1726001006477,0.11529335,2395.7,2395.1,3.0]
[1726001006675,0.11529335,2395.7,2395.0,2.0228]
[1726001006885,0.55,2395.6,2395.0,3.78234158]
[1726001007061,0.08348745,2395.5,2395.0,3.78234158]
[1726001008691,0.08348745,2395.5,2395.0,2.10629855]
[1726001008850,0.08348745,2395.5,2395.0,2.0228]
[1726001011092,0.08348745,2395.5,2394.8,3.93059385]
[1726001011296,2.4938,2395.4,2394.4,11.31059385]
[1726001011641,0.08348745,2395.3,2394.6,1.31772356]
[1726001012401,0.08348745,2395.3,2394.7,2.10630756]
[1726001012696,0.08888445,2395.3,2394.8,0.7354625]
[1726001013470,0.08888445,2395.3,2394.8,0.81896935]
[1726001014798,0.08888445,2395.3,2394.8,0.7354625]
[1726001016579,0.08888445,2395.3,2394.8,0.81896489]
[1726001016790,0.08888445,2395.3,2394.9,0.32692042]
[1726001017020,0.005397,2395.3,2394.9,0.32692042]
[1726001018121,0.005397,2395.3,2394.8,0.08350239]
[1726001018122,2.2669,2395.2,2394.8,0.08350239]
[1726001018323,2.2669,2395.0,2394.1,7.38]
[1726001018524,2.2669,2394.8,2394.0,0.08353033]
[1726001018823,0.88164638,2395.2,2394.4,2.0228]
[1726001019050,0.08348745,2395.1,2394.5,4.01410423]
[1726001019270,0.08348745,2395.1,2394.6,0.60369042]
[1726001019571,0.08348745,2395.1,2394.7,0.08350997]
[1726001019868,0.08888445,2395.2,2394.7,0.08350997]
[1726001020030,0.08888445,2395.2,2394.6,0.60369042]
[1726001020223,0.08888445,2395.2,2394.7,0.45342843]
[1726001020459,0.08888445,2395.2,2394.2,5.95339385]
[1726001020663,0.08888445,2395.2,2394.3,3.0]
[1726001020966,0.08888445,2395.2,2394.4,0.0835111]
[1726001021267,0.08888445,2395.2,2394.4,0.99555271]
[1726001022528,0.55,2395.1,2394.4,0.99555271]
[1726001022727,0.08348745,2395.0,2394.4,0.99555271]
[1726001024557,2.899,2394.9,2394.4,0.91204161]
[1726001024773,0.08348745,2394.8,2394.4,0.91204161]
[1726001024946,0.08348745,2394.8,2394.5,0.39955583]
[1726001026145,2.3861,2395.1,2394.5,0.48307371]
[1726001026344,2.3861,2395.1,2394.6,0.34179153]
[1726001026345,0.08348745,2395.0,2394.6,0.34179153]
[1726001026797,0.08348745,2395.0,2394.5,0.39955583]
[1726001026968,0.08348745,2395.0,2394.4,0.91204161]
[1726001026969,2.3861,2394.8,2394.4,0.91204161]
[1726001027169,2.3861,2394.8,2394.2,3.93059385]
[1726001027170,0.08348745,2394.7,2394.2,3.93059385]
[1726001028587,0.08348745,2394.7,2394.0,0.08352382]
[1726001028793,0.08348745,2394.7,2394.0,0.82103974]
[1726001033452,2.3861,2394.8,2394.1,3.93059385]
[1726001033654,2.46958745,2394.8,2394.2,0.08352102]
[1726001033859,2.3861,2394.8,2394.2,0.61995283]
[1726001034058,2.3861,2394.8,2394.3,0.08352165]
[1726001035658,0.08888445,2395.2,2394.3,0.08352165]
[1726001035859,2.3818,2395.1,2394.4,3.93059385]
[1726001036098,2.3818,2395.1,2394.5,0.68720204]
[1726001038335,0.08888445,2395.2,2394.5,0.68720204]
[1726001041225,0.55,2395.1,2394.4,0.08351058]
[1726001041586,0.08348745,2395.0,2394.4,0.08351058]
[1726001041781,0.63348745,2395.1,2394.4,0.08351058]
[1726001042014,0.63348745,2395.1,2394.4,0.98720102]
[1726001042847,0.08348745,2395.0,2394.4,0.98720102]
[1726001047109,2.9167,2394.9,2394.1,2.0228]
[1726001047362,0.08348745,2394.8,2394.1,0.08352972]
[1726001047855,0.55,2394.7,2394.1,0.08352972]
[1726001048017,2.44538745,2394.6,2394.1,0.28438456]
[1726001048953,2.44538745,2394.6,2394.1,0.3679144]
[1726001051347,0.08348745,2394.6,2394.1,0.3679144]
[1726001052231,2.2697,2394.5,2394.1,0.3679144]
[1726001052570,0.08348745,2394.4,2394.0,0.73751592]
[1726001053144,0.08348745,2394.4,2393.8,0.85625357]
[1726001053338,2.3525,2394.3,2393.7,0.0210119]
[1726001053843,2.3525,2394.3,2393.8,0.89507768]
[1726001054075,2.3525,2394.3,2393.8,1.3082937]
[1726001056157,2.468,2394.5,2393.9,0.08353603]
[1726001056367,0.08348745,2394.4,2393.9,0.08353603]
[1726001056668,0.08348745,2394.6,2393.9,0.90578494]
[1726001058474,0.08348745,2394.6,2393.9,0.80578494]
[1726001058779,0.08348745,2394.6,2394.0,0.08353326]
[1726001059972,0.08348745,2394.6,2393.9,0.0835333]
[1726001060183,0.95973683,2394.6,2393.9,0.0835333]
[1726001060476,0.08348745,2394.6,2393.9,0.0835333]
[1726001061344,0.95973683,2394.6,2393.9,0.0835333]
[1726001062453,0.95973683,2394.6,2393.8,2.10633328]
[1726001062794,0.95973683,2394.6,2393.7,0.87726547]
[1726001062795,3.87364938,2394.5,2393.7,0.0210119]
[1726001063100,2.4474,2394.3,2393.7,0.0210119]
[1726001063275,2.97224321,2394.2,2393.7,0.0210119]
[1726001071652,0.10443046,2394.3,2393.7,2.0438119]
[1726001072464,0.10443046,2394.3,2393.7,2.64960676]
[1726001072666,0.10442857,2394.4,2393.7,2.64960676]
[1726001072863,2.2965,2394.2,2393.7,0.0210119]
[1726001073076,0.65443687,2394.1,2393.7,0.0210119]
[1726001078466,2.2609,2394.0,2393.7,0.0210119]
[1726001078666,0.65444823,2393.9,2393.7,0.0210119]
[1726001080269,2.2609,2393.8,2393.7,0.0210119]
[1726001080469,2.8109,2393.8,2393.7,0.0210119]
[1726001084800,7.6231572,2393.8,2393.7,0.0210119]
[1726001084995,7.7951572,2393.8,2393.7,0.0210119]
[1726001085202,7.89962158,2393.8,2393.7,0.0210119]
[1726001085409,8.77587096,2393.8,2393.7,0.0210119]
[1726001085559,7.89962158,2393.8,2393.7,0.0210119]
[1726001091065,6.08736438,2393.8,2393.7,0.0210119]
[1726001091377,3.10446438,2393.8,2393.7,0.0210119]
[1726001091706,0.10446438,2393.8,2393.7,0.0210119]
[1726001092078,0.10444516,2394.0,2393.7,0.0210119]
[1726001093807,3.10444169,2394.1,2393.7,0.0210119]
[1726001094104,0.55,2394.0,2393.7,0.0210119]
[1726001094305,0.10444178,2393.9,2393.7,0.0210119]
[1726001096866,0.55,2393.8,2393.7,0.0210119]
[1726001100844,2.8296,2393.8,2393.7,0.0210119]
[1726001101003,3.70584938,2393.8,2393.7,0.0210119]
[1726001101350,0.55,2393.8,2393.7,0.0210119]
[1726001103435,0.10444178,2393.9,2393.7,0.0210119]
[1726001103632,0.10444533,2394.0,2393.7,0.0210119]
[1726001103839,0.55,2393.9,2393.7,0.0210119]
[1726001104397,0.10444531,2393.8,2393.7,0.0210119]
[1726001105636,0.65444527,2393.9,2393.7,0.0210119]
[1726001110422,1.53069465,2393.9,2393.7,0.0210119]
[1726001111435,0.87624938,2394.0,2393.7,2.0438119]
[1726001111647,0.98069432,2394.1,2393.7,2.0438119]
[1726001113468,0.98069432,2394.1,2393.7,0.0210119]
[1726001113813,0.87624938,2394.0,2393.7,0.0210119]
[1726001114046,0.98069432,2394.1,2393.7,0.0210119]
[1726001120634,0.87624938,2394.0,2393.7,0.0210119]
[1726001120843,1.53069479,2393.9,2393.7,0.0210119]
[1726001121355,0.65444541,2393.9,2393.7,0.0210119]
[1726001121560,0.10444541,2393.9,2393.7,0.0210119]
[1726001121876,1.3143677,2394.1,2393.7,2.0438119]
[1726001121877,0.87624938,2394.1,2393.7,2.0438119]
[1726001123233,0.87624938,2394.0,2393.7,2.0438119]
[1726001123578,0.87624938,2394.1,2393.7,2.0438119]
[1726001125770,0.87624938,2394.2,2393.9,2.0228]
[1726001125970,0.87624938,2394.3,2394.0,0.39187]
[1726001126371,0.98066947,2394.4,2394.0,0.39187]
[1726001128742,0.87624938,2394.4,2394.0,0.39187]
[1726001129145,0.98066944,2394.5,2394.0,0.39187]
[1726001129641,0.98066944,2394.5,2394.0,2.0228]
[1726001130797,0.87624938,2394.6,2394.2,2.0228]
[1726001131971,0.87624938,2394.5,2394.2,2.0228]
[1726001132349,0.87624938,2394.6,2394.2,2.41466878]
[1726001132660,0.87624938,2394.6,2394.2,2.0228]
[1726001133274,1.41878742,2394.7,2394.2,2.0228]
[1726001133275,0.87624938,2394.5,2394.2,2.0228]
[1726001133476,1.41878742,2394.7,2394.2,2.0228]
[1726001133477,0.87624938,2394.6,2394.2,2.0228]
[1726001133782,0.87624938,2394.6,2394.2,2.41466878]
[1726001137197,0.87624938,2394.6,2394.4,3.83515206]
[1726001138994,0.10439612,2394.9,2394.4,3.83515206]
[1726001139150,0.10439612,2394.9,2394.5,0.08351497]
[1726001139351,0.10439612,2394.9,2394.5,0.47538167]
[1726001139790,0.10439371,2395.0,2394.5,0.47538167]
[1726001140799,0.10439368,2395.1,2394.5,0.47538167]
[1726001140953,0.10439368,2395.1,2394.5,0.08351497]
[1726001143422,0.10439368,2395.1,2394.6,1.81235206]
[1726001143577,0.10439368,2395.1,2394.7,2.0228]
[1726001143777,0.10979066,2395.2,2394.7,2.0228]
[1726001144003,0.10979066,2395.2,2395.0,1.81235206]
[1726001144004,0.005397,2395.2,2395.0,1.81235206]
[1726001144320,0.005397,2395.2,2395.1,2.0228]
[1726001145411,0.005397,2395.2,2394.4,3.0]
[1726001145718,0.005397,2395.2,2394.5,4.21864196]
[1726001145928,0.005397,2395.2,2394.5,3.91864196]
[1726001146303,0.005397,2395.2,2394.6,1.81235206]
[1726001146600,0.005397,2395.2,2394.7,2.10626355]
[1726001146813,0.005397,2395.2,2394.8,0.08348447]
[1726001147021,0.005397,2395.2,2394.8,0.47534812]
[1726001148414,0.005397,2395.2,2394.8,0.08348447]
[1726001148586,0.005397,2395.2,2394.7,2.0228]
[1726001149120,0.10978224,2395.2,2394.7,2.0228]
[1726001150278,0.005397,2395.2,2394.8,0.08349749]
[1726001151609,0.005397,2395.2,2394.8,0.47536245]
[1726001162629,0.005397,2395.2,2394.9,2.0228]
[1726001162833,0.005397,2395.2,2395.0,0.08345113]